fUST/lending_fUST_20240421
["ID","MTS","AMOUNT","RATE_DAILY","PERIOD"]
[323123223,1713687042376,-500.0,0.00021917,2]
[323123224,1713687042385,-500.0,0.00021917,2]
[323123225,1713687042394,-515.61133314,0.00021917,2]
[323123226,1713687042404,-500.0,0.00021917,2]
[323123227,1713687042412,-500.0,0.00021917,2]
[323123228,1713687042421,-500.0,0.00021917,2]
[323123229,1713687042431,-630.70824198,0.00021917,2]
[323123230,1713687042440,-500.0,0.00021917,2]
[323123231,1713687042450,-500.96540924,0.00021917,2]
[323123232,1713687042458,-500.0,0.00021917,2]
[323123233,1713687042467,-504.63413785,0.00021917,2]
[323123234,1713687042477,-150.54670466,0.00021917,2]
[323123235,1713687042486,-500.0,0.00021917,2]
[323123236,1713687042496,-500.0,0.00021917,2]
[323123237,1713687042505,-500.0,0.00021917,2]
[323123238,1713687042514,-503.46666839,0.00021917,2]
[323123239,1713687042524,-164.7164948,0.00021917,2]
[323123240,1713687042533,-500.0,0.00021917,2]
[323123241,1713687042546,-500.0,0.00021917,2]
[323123242,1713687042554,-500.0,0.00021917,2]
[323123243,1713687042564,-500.0,0.00021917,2]
[323123244,1713687042573,-628.01,0.00021917,2]
[323123245,1713687042582,-507.67965804,0.00021917,2]
[323123246,1713687042591,-151.0,0.00021917,2]
[323123247,1713687042601,-500.0,0.00021917,2]
[323123248,1713687042610,-500.0,0.00021917,2]
[323123249,1713687042619,-1374.11,0.00021917,2]
[323123250,1713687042628,-1931.9,0.00021917,2]
[323123251,1713687042638,-500.0,0.00021917,2]
[323123252,1713687042647,-653.35,0.00021917,2]
[323123253,1713687042656,-500.0,0.00021917,2]
[323123254,1713687042665,-503.48021719,0.00021917,2]
[323123255,1713687042674,-1181.6,0.00021917,2]
[323123256,1713687042683,-500.0,0.00021917,2]
[323123257,1713687042692,-503.52489198,0.00021917,2]
[323123258,1713687042701,-500.0,0.00021917,2]
[323123259,1713687042710,-500.0,0.00021917,2]
[323123260,1713687042719,-500.0,0.00021917,2]
[323123261,1713687042729,-500.0,0.00021917,2]
[323123262,1713687042738,-500.0,0.00021917,2]
[323123263,1713687042747,-151.470561,0.00021917,2]
[323123264,1713687042756,-500.0,0.00021917,2]
[323123265,1713687042768,-151.470561,0.00021917,2]
[323123266,1713687042778,-151.470561,0.00021917,2]
[323123267,1713687042787,-2047.1,0.00021917,2]
[323123269,1713687042798,-500.0,0.00021917,2]
[323123270,1713687042808,-151.470561,0.00021917,2]
[323123271,1713687042816,-437.4507695,0.00021917,2]
[323123272,1713687042825,-500.0,0.00021917,2]
[323123273,1713687042834,-151.470561,0.00021917,2]
[323123274,1713687042845,-521.78143045,0.00021917,2]
[323123275,1713687042856,-1458.6,0.00021917,2]
[323123276,1713687042865,-500.53775948,0.00021917,2]
[323123277,1713687042874,-500.0,0.00021917,2]
[323123278,1713687042883,-151.470561,0.00021917,2]
[323123279,1713687042892,-500.0,0.00021917,2]
[323123280,1713687042901,-500.0,0.00021917,2]
[323123282,1713687042910,-664.34,0.00021917,2]
[323123283,1713687042919,-500.0,0.00021917,2]
[323123285,1713687042929,-500.0,0.00021917,2]
[323123286,1713687042938,-500.0,0.00021917,2]
[323123288,1713687042947,-500.0,0.00021917,2]
[323123295,1713687043058,-500.0,0.00021917,2]
[323123297,1713687043068,-500.0,0.00021917,2]
[323123298,1713687043077,-500.0,0.00021917,2]
[323123299,1713687043090,-500.0,0.00021917,2]
[323123300,1713687043099,-500.0,0.00021917,2]
[323123301,1713687043109,-500.0,0.00021917,2]
[323123303,1713687043118,-500.0,0.00021917,2]
[323123305,1713687043126,-1152.85,0.00021917,2]
[323123306,1713687043135,-500.0,0.00021917,2]
[323123308,1713687043145,-151.0,0.00021917,2]
[323123309,1713687043154,-151.0,0.00021917,2]
[323123310,1713687043164,-151.0,0.00021917,2]
[323123312,1713687043174,-151.0,0.00021917,2]
[323123313,1713687043183,-151.0,0.00021917,2]
[323123314,1713687043192,-240.35239882,0.00021917,2]
[323123315,1713687043201,-500.0,0.00021917,2]
[323123316,1713687043211,-500.0,0.00021917,2]
[323123317,1713687043222,-500.0,0.00021917,2]
[323123318,1713687043231,-500.0,0.00021917,2]
[323123319,1713687043240,-797.95,0.00021917,2]
[323123320,1713687043249,-500.0,0.00021917,2]
[323123321,1713687043259,-151.0,0.00021917,2]
[323123322,1713687043268,-500.0,0.00021917,2]
[323123323,1713687043277,-151.0,0.00021917,2]
[323123325,1713687043287,-151.0,0.00021917,2]
[323123327,1713687043299,-605.07,0.00021917,2]
[323123329,1713687043308,-151.0,0.00021917,2]
[323123331,1713687043317,-151.0,0.00021917,2]
[323123333,1713687043325,-151.0,0.00021917,2]
[323123335,1713687043334,-151.0,0.00021917,2]
[323123337,1713687043343,-222.724219,0.00021917,2]
[323123339,1713687043352,-701.11,0.00021917,2]
[323123341,1713687043361,-500.0,0.00021917,2]
[323123343,1713687043370,-151.0,0.00021917,2]
[323123345,1713687043379,-151.0,0.00021917,2]
[323123347,1713687043388,-151.0,0.00021917,2]
[323123349,1713687043397,-694.23,0.00021917,2]
[323123351,1713687043407,-192.589953,0.00021917,2]
[323123353,1713687043416,-500.0,0.00021917,2]
[323123355,1713687043426,-500.0,0.00021917,2]
[323123357,1713687043435,-500.0,0.00021917,2]
[323123359,1713687043445,-500.0,0.00021917,2]
[323123361,1713687043455,-813.61,0.00021917,2]
[323123363,1713687043464,-4330.12,0.00021917,2]
[323123366,1713687043474,-500.0,0.00021917,2]
[323123368,1713687043484,-500.0,0.00021917,2]
[323123370,1713687043493,-500.0,0.00021917,2]
[323123372,1713687043503,-500.0,0.00021917,2]
[323123374,1713687043513,-500.0,0.00021917,2]
[323123376,1713687043523,-1643.89,0.00021917,2]
[323123378,1713687043532,-500.0,0.00021917,2]
[323123380,1713687043542,-500.0,0.00021917,2]
[323123382,1713687043552,-500.0,0.00021917,2]
[323123384,1713687043562,-768.75,0.00021917,2]
[323123386,1713687043571,-500.0,0.00021917,2]
[323123388,1713687043581,-500.0,0.00021917,2]
[323123390,1713687043590,-500.0,0.00021917,2]
[323123392,1713687043599,-500.0,0.00021917,2]
[323123393,1713687043610,-500.0,0.00021917,2]
[323123395,1713687043619,-500.0,0.00021917,2]
[323123396,1713687043629,-500.0,0.00021917,2]
[323123399,1713687043639,-500.0,0.00021917,2]
[323123403,1713687043649,-500.0,0.00021917,2]
[323123405,1713687043658,-500.0,0.00021917,2]
[323123407,1713687043667,-500.0,0.00021917,2]
[323123408,1713687043676,-500.0,0.00021917,2]
[323123410,1713687043685,-331.41471362,0.00021917,2]
[323123411,1713687043694,-500.0,0.00021917,2]
[323123413,1713687043703,-503.18744206,0.00021917,2]
[323123414,1713687043712,-500.0,0.00021917,2]
[323123415,1713687043721,-624.67396608,0.00021917,2]
[323123417,1713687043730,-500.0,0.00021917,2]
[323123419,1713687043739,-500.0,0.00021917,2]
[323123421,1713687043750,-4651.14,0.00021917,2]
[323123422,1713687043760,-320.51174596,0.00021917,2]
[323123423,1713687043771,-500.0,0.00021917,2]
[323123425,1713687043780,-758.86,0.00021917,2]
[323123427,1713687043789,-6413.11,0.00021917,2]
[323123428,1713687043798,-507.61754007,0.00021917,2]
[323123429,1713687043808,-500.0,0.00021917,2]
[323123430,1713687043818,-500.0,0.00021917,2]
[323123431,1713687043827,-500.0,0.00021917,2]
[323123432,1713687043836,-500.0,0.00021917,2]
[323123433,1713687043847,-500.0,0.00021917,2]
[323123434,1713687043857,-500.0,0.00021917,2]
[323123435,1713687043866,-513.53,0.00021917,2]
[323123436,1713687043875,-500.0,0.00021917,2]
[323123437,1713687043884,-500.0,0.00021917,2]
[323123438,1713687043893,-500.0,0.00021917,2]
[323123439,1713687043903,-816.56,0.00021917,2]
[323123440,1713687043912,-503.27970568,0.00021917,2]
[323123441,1713687043921,-626.80285602,0.00021917,2]
[323123442,1713687043930,-1743.18,0.00021917,2]
[323123443,1713687043939,-500.0,0.00021917,2]
[323123444,1713687043949,-500.0,0.00021917,2]
[323123445,1713687043958,-508.80626197,0.00021917,2]
[323123446,1713687043967,-1010.63,0.00021917,2]
[323123447,1713687043979,-501.53776243,0.00021917,2]
[323123448,1713687043996,-500.0,0.00021917,2]
[323123449,1713687044011,-500.0,0.00021917,2]
[323123450,1713687044023,-500.0,0.00021917,2]
[323123451,1713687044047,-500.0,0.00021917,2]
[323123452,1713687044070,-500.0,0.00021917,2]
[323123453,1713687044085,-500.0,0.00021917,2]
[323123454,1713687044100,-927.57,0.00021917,2]
[323123455,1713687044113,-500.0,0.00021917,2]
[323123456,1713687044125,-500.0,0.00021917,2]
[323123457,1713687044138,-500.0,0.00021917,2]
[323123458,1713687044151,-4205.08,0.00021917,2]
[323123459,1713687044165,-630.67,0.00021917,2]
[323123460,1713687044179,-189.58415617,0.00021917,2]
[323123461,1713687044189,-500.0,0.00021917,2]
[323123462,1713687044203,-503.2572355,0.00021917,2]
[323123463,1713687044217,-500.0,0.00021917,2]
[323123464,1713687044231,-501.47512618,0.00021917,2]
[323123465,1713687044244,-495.74954784,0.00021917,2]
[323123466,1713687044256,-500.0,0.00021917,2]
[323123467,1713687044270,-500.0,0.00021917,2]
[323123468,1713687044284,-500.0,0.00021917,2]
[323123469,1713687044300,-878.31,0.00021917,2]
[323123470,1713687044315,-500.0,0.00021917,2]
[323123471,1713687044326,-227.10337859,0.00021917,2]
[323123472,1713687044336,-1441.08,0.00021917,2]
[323123473,1713687044348,-500.0,0.00021917,2]
[323123474,1713687044361,-1139.14,0.00021917,2]
[323123475,1713687044373,-500.0,0.00021917,2]
[323123476,1713687044386,-500.0,0.00021917,2]
[323123477,1713687044397,-1040.72,0.00021917,2]
[323123478,1713687044408,-700.58,0.00021917,2]
[323123479,1713687044420,-500.0,0.00021917,2]
[323123480,1713687044431,-700.58,0.00021917,2]
[323123481,1713687044443,-527.04963338,0.00021917,2]
[323123482,1713687044721,-193.24036662,0.00021917,2]
[323123483,1713687044733,-700.58,0.00021917,2]
[323123484,1713687044745,-700.58,0.00021917,2]
[323123485,1713687044756,-700.58,0.00021917,2]
[323123486,1713687044770,-700.58,0.00021917,2]
[323123487,1713687044782,-700.58,0.00021917,2]
[323123488,1713687044796,-700.58,0.00021917,2]
[323123489,1713687044808,-518.33017643,0.00021917,2]
[323123490,1713687044820,-700.58,0.00021917,2]
[323123491,1713687044831,-700.58,0.00021917,2]
[323123492,1713687044844,-700.58,0.00021917,2]
[323123493,1713687044856,-700.58,0.00021917,2]
[323123494,1713687044867,-151.0,0.00021917,2]
[323123495,1713687044879,-700.58,0.00021917,2]
[323123496,1713687044891,-500.0,0.00021917,2]
[323123497,1713687044902,-100.66849863,0.00021917,2]
[323123498,1713687045055,-399.33150137,0.00021917,2]
[323123499,1713687045066,-500.0,0.00021917,2]
[323123500,1713687045078,-172.44373621,0.00021917,2]
[323123501,1713687045090,-226.399155,0.00021917,2]
[323123502,1713687045102,-226.399155,0.00021917,2]
[323123503,1713687045114,-226.399155,0.00021917,2]
[323123504,1713687045126,-226.399155,0.00021917,2]
[323123505,1713687045137,-504.01479501,0.00021917,2]
[323123506,1713687045149,-226.399155,0.00021917,2]
[323123507,1713687045159,-226.399155,0.00021917,2]
[323123508,1713687045169,-226.399155,0.00021917,2]
[323123509,1713687045180,-31.56767327,0.00021917,2]
[323123510,1713687045358,-229.13947593,0.00021917,2]
[323123511,1713687045367,-500.0,0.00021917,2]
[323123512,1713687045376,-527.59,0.00021917,2]
[323123513,1713687045385,-500.0,0.00021917,2]
[323123514,1713687045394,-226.399155,0.00021917,2]
[323123515,1713687045403,-226.399155,0.00021917,2]
[323123516,1713687045411,-226.399155,0.00021917,2]
[323123517,1713687045420,-226.399155,0.00021917,2]
[323123518,1713687045430,-226.399155,0.00021917,2]
[323123519,1713687045439,-808.24,0.00021917,2]
[323123520,1713687045448,-226.399155,0.00021917,2]
[323123521,1713687045457,-226.399155,0.00021917,2]
[323123522,1713687045466,-1372.77,0.00021917,2]
[323123523,1713687045475,-500.0,0.00021917,2]
[323123524,1713687045484,-500.0,0.00021917,2]
[323123525,1713687045494,-948.75,0.00021917,2]
[323123526,1713687045504,-1085.0,0.00021917,2]
[323123527,1713687045513,-500.0,0.00021917,2]
[323123528,1713687045523,-524.9,0.00021917,2]
[323123529,1713687045533,-500.0,0.00021917,2]
[323123530,1713687045545,-500.0,0.00021917,2]
[323123531,1713687045555,-618.07,0.00021917,2]
[323123532,1713687045564,-800.68,0.00021917,2]
[323123533,1713687045574,-1239.0,0.00021917,2]
[323123534,1713687045583,-503.02512277,0.00021917,2]
[323123535,1713687045593,-507.80996318,0.00021917,2]
[323123536,1713687045603,-500.0,0.00021917,2]
[323123537,1713687045612,-500.0,0.00021917,2]
[323123538,1713687045621,-500.0,0.00021917,2]
[323123539,1713687045630,-500.0,0.00021917,2]
[323123540,1713687045639,-500.0,0.00021917,2]
[323123541,1713687045649,-500.0,0.00021917,2]
[323123542,1713687045658,-505.86513601,0.00021917,2]
[323123543,1713687045667,-500.0,0.00021917,2]
[323123544,1713687045676,-362.86139159,0.00021917,2]
[323123545,1713687045686,-500.0,0.00021917,2]
[323123546,1713687045696,-500.0,0.00021917,2]
[323123547,1713687045705,-500.0,0.00021917,2]
[323123548,1713687045715,-500.0,0.00021917,2]
[323123549,1713687045726,-1216.33,0.00021917,2]
[323123550,1713687045735,-500.0,0.00021917,2]
[323123551,1713687045745,-500.0,0.00021917,2]
[323123552,1713687045754,-500.0,0.00021917,2]
[323123553,1713687045765,-500.0,0.00021917,2]
[323123554,1713687045776,-500.0,0.00021917,2]
[323123555,1713687045786,-500.0,0.00021917,2]
[323123557,1713687045797,-645.16,0.00021917,2]
[323123559,1713687045806,-500.0,0.00021917,2]
[323123561,1713687045816,-502.51,0.00021917,2]
[323123563,1713687045825,-500.0,0.00021917,2]
[323123565,1713687045835,-500.0,0.00021917,2]
[323123567,1713687045845,-500.0,0.00021917,2]
[323123570,1713687045854,-1810.43,0.00021917,2]
[323123572,1713687045864,-250.48404022,0.00021917,2]
[323123573,1713687045873,-500.0,0.00021917,2]
[323123574,1713687045883,-500.0,0.00021917,2]
[323123575,1713687045893,-500.0,0.00021917,2]
[323123577,1713687045903,-280.89203634,0.00021917,2]
[323123578,1713687045913,-506.35109438,0.00021917,2]
[323123579,1713687045922,-731.4,0.00021917,2]
[323123580,1713687045932,-500.0,0.00021917,2]
[323123581,1713687045941,-2666.86,0.00021917,2]
[323123582,1713687045950,-500.0,0.00021917,2]
[323123583,1713687045959,-500.0,0.00021917,2]
[323123584,1713687045969,-500.0,0.00021917,2]
[323123585,1713687045978,-605.81,0.00021917,2]
[323123586,1713687045987,-322.69991881,0.00021917,2]
[323123587,1713687045997,-500.0,0.00021917,2]
[323123588,1713687046006,-500.0,0.00021917,2]
[323123589,1713687046015,-2246.83,0.00021917,2]
[323123590,1713687046025,-483.75454223,0.00021917,2]
[323123591,1713687046035,-500.0,0.00021917,2]
[323123592,1713687046045,-500.0,0.00021917,2]
[323123593,1713687046054,-500.0,0.00021917,2]
[323123594,1713687046063,-674.4,0.00021917,2]
[323123595,1713687046072,-500.0,0.00021917,2]
[323123596,1713687046088,-500.0,0.00021917,2]
[323123597,1713687046097,-522.89,0.00021917,2]
[323123598,1713687046106,-500.0,0.00021917,2]
[323123599,1713687046115,-503.18245175,0.00021917,2]
[323123600,1713687046124,-500.0,0.00021917,2]
[323123601,1713687046133,-500.0,0.00021917,2]
[323123602,1713687046142,-500.0,0.00021917,2]
[323123603,1713687046151,-606.2,0.00021917,2]
[323123604,1713687046160,-513.54773408,0.00021917,2]
[323123605,1713687046169,-500.0,0.00021917,2]
[323123606,1713687046178,-744.42,0.00021917,2]
[323123607,1713687046187,-314.80408869,0.00021917,2]
[323123608,1713687046196,-500.0,0.00021917,2]
[323123609,1713687046205,-2409.58,0.00021917,2]
[323123610,1713687046215,-500.0,0.00021917,2]
[323123611,1713687046224,-500.0,0.00021917,2]
[323123612,1713687046233,-522.55,0.00021917,2]
[323123613,1713687046242,-500.0,0.00021917,2]
[323123614,1713687046251,-39739.73,0.00021917,2]
[323123615,1713687046260,-503.64023074,0.00021917,2]
[323123616,1713687046269,-818.57,0.00021917,2]
[323123617,1713687046278,-500.0,0.00021917,2]
[323123618,1713687046288,-500.0,0.00021917,2]
[323123619,1713687046298,-505.45382502,0.00021917,2]
[323123620,1713687046308,-500.0,0.00021917,2]
[323123621,1713687046316,-500.0,0.00021917,2]
[323123622,1713687046325,-151.0,0.00021917,2]
[323123623,1713687046335,-151.0,0.00021917,2]
[323123624,1713687046344,-151.0,0.00021917,2]
[323123625,1713687046354,-775.51,0.00021917,2]
[323123626,1713687046364,-151.0,0.00021917,2]
[323123627,1713687046373,-151.0,0.00021917,2]
[323123628,1713687046382,-500.0,0.00021917,2]
[323123629,1713687046391,-500.0,0.00021917,2]
[323123630,1713687046401,-181.035131,0.00021917,2]
[323123631,1713687046410,-2614.25,0.00021917,2]
[323123632,1713687046419,-1902.71,0.00021917,2]
[323123633,1713687046428,-167.98399902,0.00021969,2]
[323123634,1713687046437,-500.0,0.00021999,2]
[323123635,1713687046447,-700.58,0.00021999,2]
[323123636,1713687046457,-700.58,0.00021999,2]
[323123637,1713687046466,-2780.84688489,0.00022,2]
[323123638,1713687046475,-158.99683336,0.00022,2]
[323123639,1713687046485,-17197.30863463,0.00022,2]
[323123642,1713687046609,-526.14121076,0.00021916,2]
[323123643,1713687046618,-170.14726692,0.00021916,2]
[323123644,1713687046627,-20976.14542291,0.00022,2]
[323123651,1713688024729,150.5,0.000241,35]
[323123652,1713688025310,150.5,0.0002409,35]
[323123653,1713688027232,153.02,0.0002408,35]
[323123654,1713688027315,150.5,0.000241,35]
[323123655,1713688027367,224.0,0.000241,35]
[323123656,1713688027722,150.5,0.0002409,35]
[323123657,1713688028528,224.0,0.0002409,35]
[323123658,1713688028900,150.5,0.0002408,35]
[323123659,1713688029249,224.0,0.0002408,35]
[323123660,1713688147201,261.96,0.000241,35]
[323123736,1713688238612,-1090.08472256,0.00021706,2]
[323123738,1713688238622,-539.63707301,0.00021707,2]
[323123740,1713688238631,-1226.00409793,0.00021707,2]
[323123745,1713688238667,-216.22455312,0.00021707,2]
[323123747,1713688238676,-1311.22668928,0.00021707,2]
[323123748,1713688238686,-300.0,0.00021707,2]
[323123751,1713688238695,-300.0,0.00021707,2]
[323123753,1713688238703,-905.47045506,0.00021715,2]
[323123756,1713688238713,-38236.43742584,0.00021814,2]
[323123759,1713688238722,-262.17913499,0.00021815,2]
[323123764,1713688238732,-724.67219348,0.00021815,2]
[323123768,1713688238740,-222.03683623,0.00021816,2]
[323123772,1713688238750,-39201.80932475,0.00021817,2]
[323123776,1713688238759,-643.41065564,0.00021889,2]
[323123781,1713688238768,-154.84515485,0.00021916,2]
[323123783,1713688238777,-154.84793416,0.00021916,2]
[323123786,1713688238787,-500.0,0.00021917,2]
[323123789,1713688238796,-500.0,0.00021917,2]
[323123792,1713688238804,-500.0,0.00021917,2]
[323123795,1713688238816,-766.4,0.00021917,2]
[323123799,1713688238825,-500.0,0.00021917,2]
[323123802,1713688238834,-649.87005967,0.00021917,2]
[323123803,1713688238843,-500.0,0.00021917,2]
[323123805,1713688238853,-500.0,0.00021917,2]
[323123807,1713688238862,-500.0,0.00021917,2]
[323123809,1713688238871,-500.0,0.00021917,2]
[323123810,1713688238880,-500.0,0.00021917,2]
[323123812,1713688238889,-500.0,0.00021917,2]
[323123813,1713688238898,-500.0,0.00021917,2]
[323123815,1713688238907,-500.0,0.00021917,2]
[323123817,1713688238916,-500.0,0.00021917,2]
[323123819,1713688238926,-500.0,0.00021917,2]
[323123820,1713688238935,-526.19634509,0.00021917,2]
[323123821,1713688238944,-500.0,0.00021917,2]
[323123822,1713688238954,-500.0,0.00021917,2]
[323123824,1713688238963,-500.0,0.00021917,2]
[323123825,1713688238972,-500.0,0.00021917,2]
[323123826,1713688238981,-507.19889557,0.00021917,2]
[323123827,1713688238991,-506.00605937,0.00021917,2]
[323123828,1713688239000,-500.0,0.00021917,2]
[323123829,1713688239009,-500.0,0.00021917,2]
[323123830,1713688239019,-500.0,0.00021917,2]
[323123831,1713688239028,-500.0,0.00021917,2]
[323123832,1713688239037,-500.0,0.00021917,2]
[323123834,1713688239046,-500.0,0.00021917,2]
[323123835,1713688239056,-500.0,0.00021917,2]
[323123836,1713688239071,-500.0,0.00021917,2]
[323123837,1713688239080,-507.0549992,0.00021917,2]
[323123838,1713688239090,-785.34,0.00021917,2]
[323123839,1713688239100,-500.0,0.00021917,2]
[323123840,1713688239109,-500.0,0.00021917,2]
[323123841,1713688239121,-439.43905108,0.00021917,2]
[323123842,1713688239133,-500.0,0.00021917,2]
[323123843,1713688239143,-500.0,0.00021917,2]
[323123844,1713688239152,-500.0,0.00021917,2]
[323123845,1713688239162,-500.0,0.00021917,2]
[323123846,1713688239171,-500.0,0.00021917,2]
[323123847,1713688239180,-500.0,0.00021917,2]
[323123848,1713688239189,-500.0,0.00021917,2]
[323123849,1713688239200,-1014.13242916,0.00021917,2]
[323123850,1713688239209,-500.0,0.00021917,2]
[323123851,1713688239218,-500.0,0.00021917,2]
[323123852,1713688239227,-500.0,0.00021917,2]
[323123853,1713688239236,-500.0,0.00021917,2]
[323123854,1713688239246,-500.0,0.00021917,2]
[323123855,1713688239255,-500.0,0.00021917,2]
[323123856,1713688239264,-500.0,0.00021917,2]
[323123857,1713688239273,-500.0,0.00021917,2]
[323123858,1713688239282,-500.0,0.00021917,2]
[323123859,1713688239292,-500.0,0.00021917,2]
[323123860,1713688239301,-740.66,0.00021917,2]
[323123861,1713688239312,-392.66360085,0.00021917,2]
[323123862,1713688239322,-507.42751047,0.00021917,2]
[323123863,1713688239331,-500.0,0.00021917,2]
[323123864,1713688239340,-588.97,0.00021917,2]
[323123865,1713688239349,-500.0,0.00021917,2]
[323123866,1713688239358,-385.08909183,0.00021917,2]
[323123867,1713688239367,-500.0,0.00021917,2]
[323123868,1713688239376,-500.0,0.00021917,2]
[323123869,1713688239385,-511.42419852,0.00021917,2]
[323123870,1713688239393,-500.0,0.00021917,2]
[323123871,1713688239403,-504.78183559,0.00021917,2]
[323123872,1713688239412,-519.26136597,0.00021917,2]
[323123873,1713688239421,-500.0,0.00021917,2]
[323123874,1713688239429,-791.01,0.00021917,2]
[323123875,1713688239438,-500.0,0.00021917,2]
[323123876,1713688239447,-500.0,0.00021917,2]
[323123877,1713688239456,-500.0,0.00021917,2]
[323123878,1713688239465,-500.0,0.00021917,2]
[323123879,1713688239475,-500.0,0.00021917,2]
[323123880,1713688239484,-500.0,0.00021917,2]
[323123881,1713688239492,-500.0,0.00021917,2]
[323123882,1713688239502,-500.0,0.00021917,2]
[323123883,1713688239511,-500.0,0.00021917,2]
[323123884,1713688239520,-500.0,0.00021917,2]
[323123885,1713688239529,-510.27205363,0.00021917,2]
[323123886,1713688239539,-500.0,0.00021917,2]
[323123887,1713688239548,-500.0,0.00021917,2]
[323123888,1713688239557,-500.0,0.00021917,2]
[323123889,1713688239567,-500.0,0.00021917,2]
[323123890,1713688239576,-508.02911983,0.00021917,2]
[323123891,1713688239584,-624.95533883,0.00021917,2]
[323123892,1713688239593,-502.41307117,0.00021917,2]
[323123893,1713688239602,-500.0,0.00021917,2]
[323123894,1713688239612,-500.0,0.00021917,2]
[323123895,1713688239621,-638.86,0.00021917,2]
[323123896,1713688239631,-500.0,0.00021917,2]
[323123897,1713688239640,-500.0,0.00021917,2]
[323123898,1713688239649,-500.0,0.00021917,2]
[323123899,1713688239658,-500.0,0.00021917,2]
[323123900,1713688239667,-500.0,0.00021917,2]
[323123901,1713688239677,-500.0,0.00021917,2]
[323123902,1713688239686,-500.0,0.00021917,2]
[323123903,1713688239696,-500.0,0.00021917,2]
[323123904,1713688239705,-500.0,0.00021917,2]
[323123905,1713688239714,-314.20127531,0.00021917,2]
[323123906,1713688239723,-500.0,0.00021917,2]
[323123907,1713688239732,-630.70824198,0.00021917,2]
[323123908,1713688239742,-500.0,0.00021917,2]
[323123909,1713688239751,-500.96540924,0.00021917,2]
[323123910,1713688239760,-500.0,0.00021917,2]
[323123911,1713688239769,-515.61133314,0.00021917,2]
[323123912,1713688239778,-500.0,0.00021917,2]
[323123913,1713688239787,-504.63413785,0.00021917,2]
[323123914,1713688239796,-500.0,0.00021917,2]
[323123915,1713688239805,-502.58328906,0.00021917,2]
[323123916,1713688239816,-220.225749,0.00021917,2]
[323123917,1713688239825,-502.6067113,0.00021917,2]
[323123918,1713688239834,-506.64861878,0.00021917,2]
[323123919,1713688239843,-508.67049919,0.00021917,2]
[323123920,1713688239854,-503.46666839,0.00021917,2]
[323123921,1713688239863,-500.0,0.00021917,2]
[323123922,1713688239873,-500.0,0.00021917,2]
[323123923,1713688239885,-977.6,0.00021917,2]
[323123924,1713688239895,-500.0,0.00021917,2]
[323123925,1713688239905,-507.67965804,0.00021917,2]
[323123926,1713688239914,-500.0,0.00021917,2]
[323123927,1713688239923,-500.0,0.00021917,2]
[323123928,1713688239933,-510.95,0.00021917,2]
[323123929,1713688239942,-503.52489198,0.00021917,2]
[323123930,1713688239951,-500.0,0.00021917,2]
[323123931,1713688239960,-500.0,0.00021917,2]
[323123932,1713688239969,-1458.6,0.00021917,2]
[323123933,1713688239978,-500.0,0.00021917,2]
[323123934,1713688239987,-151.0,0.00021917,2]